[Event "Early-Titled-Tuesday-Blitz-January-16-2024"]
[Site "Chess.com"]
[Date "2024.01.16"]
[Round "2"]
[White "isaks"]
[Black "starworld123"]
[Result "0-1"]
[WhiteElo "2404"]
[BlackElo "2828"]
[TimeControl "180+1"]
[EndTime "8:19:28 PST"]
[Termination "starworld123 won by resignation"]

1. e4 {[%clk 0:02:59.9]} 1... c5 {[%clk 0:02:58]} 2. Nf3 {[%clk 0:02:59.8]} 2...
e6 {[%clk 0:02:54.3]} 3. b3 {[%clk 0:02:58.4]} 3... d6 {[%clk 0:02:50.1]} 4. Bb2
{[%clk 0:02:55.6]} 4... Nf6 {[%clk 0:02:49.1]} 5. e5 {[%clk 0:02:48.5]} 5...
dxe5 {[%clk 0:02:49.1]} 6. Nxe5 {[%clk 0:02:49.4]} 6... Nbd7 {[%clk 0:02:46.9]}
7. f4 {[%clk 0:02:44]} 7... Bd6 {[%clk 0:02:46]} 8. Bb5 {[%clk 0:02:39.4]} 8...
a6 {[%clk 0:02:45.2]} 9. Bxd7+ {[%clk 0:02:39.3]} 9... Bxd7 {[%clk 0:02:46.1]}
10. d3 {[%clk 0:02:36.9]} 10... O-O {[%clk 0:02:43.7]} 11. Nd2 {[%clk
0:02:37.2]} 11... Qc7 {[%clk 0:02:41.4]} 12. O-O {[%clk 0:02:35.2]} 12... Nd5
{[%clk 0:02:36.8]} 13. Ndc4 {[%clk 0:02:04.4]} 13... Be7 {[%clk 0:02:37.2]} 14.
Qf3 {[%clk 0:01:49.3]} 14... f6 {[%clk 0:02:14.2]} 15. Nxd7 {[%clk 0:01:39.8]}
15... Qxd7 {[%clk 0:02:15.1]} 16. Rae1 {[%clk 0:01:28.1]} 16... b5 {[%clk
0:02:15.3]} 17. Ne3 {[%clk 0:01:28.4]} 17... Rae8 {[%clk 0:02:09.6]} 18. f5
{[%clk 0:01:22.3]} 18... Nxe3 {[%clk 0:02:05.6]} 19. fxe6 {[%clk 0:01:22.2]}
19... Qxe6 {[%clk 0:01:58.2]} 20. Rxe3 {[%clk 0:01:22.4]} 20... Qd7 {[%clk
0:01:57.7]} 21. Rfe1 {[%clk 0:01:20.5]} 21... c4 {[%clk 0:01:54.9]} 22. bxc4
{[%clk 0:01:04.4]} 22... Bc5 {[%clk 0:01:45.6]} 23. d4 {[%clk 0:01:04.7]} 23...
Bxd4 {[%clk 0:01:45.7]} 24. Bxd4 {[%clk 0:01:04.7]} 24... Qxd4 {[%clk
0:01:46.6]} 25. cxb5 {[%clk 0:01:03.9]} 25... axb5 {[%clk 0:01:44.4]} 26. Qf2
{[%clk 0:00:58.7]} 26... Rxe3 {[%clk 0:01:42.6]} 27. Qxe3 {[%clk 0:00:58.7]}
27... Qc4 {[%clk 0:01:28.3]} 28. Qb3 {[%clk 0:00:57.2]} 28... Rc8 {[%clk
0:01:23.1]} 29. a4 {[%clk 0:00:36.9]} 29... Qxb3 {[%clk 0:00:15.5]} 30. cxb3
{[%clk 0:00:36.3]} 30... Rc3 {[%clk 0:00:14]} 31. axb5 {[%clk 0:00:35]} 31...
Rxb3 {[%clk 0:00:14.4]} 32. Re8+ {[%clk 0:00:35.4]} 32... Kf7 {[%clk 0:00:15.1]}
33. Rb8 {[%clk 0:00:36.3]} 33... Kg6 {[%clk 0:00:15.8]} 34. h3 {[%clk 0:00:36]}
34... Rb2 {[%clk 0:00:15.4]} 35. Kh2 {[%clk 0:00:36.1]} 35... h5 {[%clk
0:00:14.1]} 36. Rb7 {[%clk 0:00:36.1]} 36... h4 {[%clk 0:00:13.5]} 37. b6 {[%clk
0:00:36]} 37... Kh6 {[%clk 0:00:13.7]} 38. Kg1 {[%clk 0:00:35.1]} 38... g6
{[%clk 0:00:13.7]} 39. Rb8 {[%clk 0:00:32.7]} 39... Kg5 {[%clk 0:00:14.1]} 40.
Kf1 {[%clk 0:00:31.4]} 40... Kf5 {[%clk 0:00:13.5]} 41. b7 {[%clk 0:00:27.1]}
41... g5 {[%clk 0:00:13.5]} 42. Kg1 {[%clk 0:00:25.6]} 42... Kf4 {[%clk
0:00:11.8]} 43. Kf1 {[%clk 0:00:26.1]} 43... Kg3 {[%clk 0:00:11.7]} 44. Rf8
{[%clk 0:00:06.5]} 44... Rb1+ {[%clk 0:00:12]} 45. Ke2 {[%clk 0:00:06.6]} 45...
Rxb7 {[%clk 0:00:12.9]} 46. Rxf6 {[%clk 0:00:06.9]} 46... Kxg2 {[%clk
0:00:13.6]} 47. Rf5 {[%clk 0:00:03.9]} 47... Re7+ {[%clk 0:00:13.8]} 48. Kd3
{[%clk 0:00:03.8]} 48... Rg7 {[%clk 0:00:14.5]} 49. Ke4 {[%clk 0:00:03.5]} 49...
Kxh3 {[%clk 0:00:14.7]} 50. Rf1 {[%clk 0:00:03.7]} 50... g4 {[%clk 0:00:14.4]}
51. Rh1+ {[%clk 0:00:02.9]} 51... Kg2 {[%clk 0:00:15]} 52. Rxh4 {[%clk
0:00:03.1]} 52... g3 {[%clk 0:00:15.8]} 53. Kf4 {[%clk 0:00:03.4]} 53... Kf2
{[%clk 0:00:14.9]} 54. Rh1 {[%clk 0:00:01.7]} 54... g2 {[%clk 0:00:15]} 55. Rh2
{[%clk 0:00:02.4]} 55... Kf1 {[%clk 0:00:13.9]} 0-1

[Event "Early-Titled-Tuesday-Blitz-January-16-2024"]
[Site "Chess.com"]
[Date "2024.01.16"]
[Round "2"]
[White "iwanyu"]
[Black "Msb2"]
[Result "1/2-1/2"]
[WhiteElo "2662"]
[BlackElo "3059"]
[TimeControl "180+1"]
[EndTime "8:19:31 PST"]
[Termination "Game drawn by repetition"]

1. d4 {[%clk 0:03:00.9]} 1... d5 {[%clk 0:02:59.9]} 2. c4 {[%clk 0:03:00.7]}
2... e6 {[%clk 0:03:00.6]} 3. Nf3 {[%clk 0:03:01]} 3... Nf6 {[%clk 0:03:01.1]}
4. g3 {[%clk 0:03:01.3]} 4... Nc6 {[%clk 0:03:01.7]} 5. Nbd2 {[%clk 0:02:56.4]}
5... Bd6 {[%clk 0:03:01.4]} 6. Bg2 {[%clk 0:02:55.9]} 6... O-O {[%clk
0:03:01.9]} 7. O-O {[%clk 0:02:56]} 7... a5 {[%clk 0:03:02.5]} 8. a3 {[%clk
0:02:50.8]} 8... a4 {[%clk 0:03:00.7]} 9. Qc2 {[%clk 0:02:50.8]} 9... Bd7 {[%clk
0:03:00.1]} 10. e4 {[%clk 0:02:49.4]} 10... dxe4 {[%clk 0:03:00.3]} 11. Nxe4
{[%clk 0:02:49.5]} 11... Nxe4 {[%clk 0:03:01.2]} 12. Qxe4 {[%clk 0:02:50]} 12...
Na5 {[%clk 0:03:01.9]} 13. Ng5 {[%clk 0:02:45.8]} 13... f5 {[%clk 0:02:53]} 14.
Qe2 {[%clk 0:02:35.9]} 14... Nb3 {[%clk 0:02:48]} 15. Nxe6 {[%clk 0:02:24.8]}
15... Qe8 {[%clk 0:02:25.3]} 16. Bd5 {[%clk 0:02:18.8]} 16... Kh8 {[%clk
0:02:23.5]} 17. c5 {[%clk 0:02:09.1]} 17... Nxa1 {[%clk 0:02:04.1]} 18. cxd6
{[%clk 0:02:08.1]} 18... cxd6 {[%clk 0:02:05]} 19. Re1 {[%clk 0:01:47.6]} 19...
Bxe6 {[%clk 0:01:55.4]} 20. Bxe6 {[%clk 0:01:48.5]} 20... Nb3 {[%clk 0:01:52.6]}
21. d5 {[%clk 0:01:46]} 21... Nd4 {[%clk 0:01:42.5]} 22. Qd3 {[%clk 0:01:29.6]}
22... Nxe6 {[%clk 0:01:39.8]} 23. dxe6 {[%clk 0:01:29.7]} 23... Qe7 {[%clk
0:01:37.2]} 24. Qd5 {[%clk 0:00:53.4]} 24... Rac8 {[%clk 0:01:25.5]} 25. Bf4
{[%clk 0:00:51.9]} 25... Rc6 {[%clk 0:01:25.8]} 26. h4 {[%clk 0:00:49.7]} 26...
h6 {[%clk 0:01:25.8]} 27. Be3 {[%clk 0:00:43.5]} 27... Rc2 {[%clk 0:01:09.6]}
28. Bd4 {[%clk 0:00:41.4]} 28... f4 {[%clk 0:00:53.6]} 29. Qe4 {[%clk
0:00:37.9]} 29... Rc6 {[%clk 0:00:52.7]} 30. Qg6 {[%clk 0:00:36]} 30... Kg8
{[%clk 0:00:51.6]} 31. g4 {[%clk 0:00:35.4]} 31... f3 {[%clk 0:00:41.4]} 32. g5
{[%clk 0:00:32.5]} 32... hxg5 {[%clk 0:00:34.7]} 33. h5 {[%clk 0:00:29.5]} 33...
Rcc8 {[%clk 0:00:20.9]} 34. h6 {[%clk 0:00:29]} 34... Rf6 {[%clk 0:00:21.6]} 35.
h7+ {[%clk 0:00:21.7]} 35... Kh8 {[%clk 0:00:20.5]} 36. Qxg5 {[%clk 0:00:19.5]}
36... Kxh7 {[%clk 0:00:19.4]} 37. Bxf6 {[%clk 0:00:15.6]} 37... Qxf6 {[%clk
0:00:20.3]} 38. Qxf6 {[%clk 0:00:15.4]} 38... gxf6 {[%clk 0:00:21.2]} 39. e7
{[%clk 0:00:16.2]} 39... Re8 {[%clk 0:00:21.6]} 40. Re6 {[%clk 0:00:16.8]} 40...
Kg6 {[%clk 0:00:21.1]} 41. Kf1 {[%clk 0:00:16.8]} 41... Kf5 {[%clk 0:00:18.4]}
42. Re3 {[%clk 0:00:16]} 42... Kg6 {[%clk 0:00:19]} 43. Rxf3 {[%clk 0:00:15.8]}
43... Rxe7 {[%clk 0:00:19.3]} 44. Rf4 {[%clk 0:00:16.7]} 44... b5 {[%clk
0:00:19]} 45. Rd4 {[%clk 0:00:17.6]} 45... Re6 {[%clk 0:00:19]} 46. Rd5 {[%clk
0:00:17.9]} 46... Re5 {[%clk 0:00:15.1]} 47. Rxd6 {[%clk 0:00:18.1]} 47... Rc5
{[%clk 0:00:15.8]} 48. Rd4 {[%clk 0:00:18.4]} 48... Kf5 {[%clk 0:00:15.3]} 49.
Rb4 {[%clk 0:00:18.7]} 49... Ke5 {[%clk 0:00:15.9]} 50. Ke2 {[%clk 0:00:19.1]}
50... Kd5 {[%clk 0:00:15.8]} 51. Kd3 {[%clk 0:00:19.5]} 51... Kc6 {[%clk
0:00:16.4]} 52. Rf4 {[%clk 0:00:19.5]} 52... f5 {[%clk 0:00:16.8]} 53. Rh4
{[%clk 0:00:19.5]} 53... Rc1 {[%clk 0:00:16.6]} 54. Rh6+ {[%clk 0:00:19.1]}
54... Kd5 {[%clk 0:00:17.2]} 55. Rb6 {[%clk 0:00:18.5]} 55... Rc5 {[%clk
0:00:16.2]} 56. Rf6 {[%clk 0:00:18.6]} 56... Ke5 {[%clk 0:00:16.8]} 57. Rf8
{[%clk 0:00:19.3]} 57... Rd5+ {[%clk 0:00:15.4]} 58. Ke3 {[%clk 0:00:19.3]}
58... Rc5 {[%clk 0:00:15.6]} 59. f4+ {[%clk 0:00:19.5]} 59... Ke6 {[%clk
0:00:15.5]} 60. Re8+ {[%clk 0:00:19.2]} 60... Kf6 {[%clk 0:00:14.3]} 61. Rd8
{[%clk 0:00:19.4]} 61... Rc2 {[%clk 0:00:13.1]} 62. Rd6+ {[%clk 0:00:19.5]}
62... Ke7 {[%clk 0:00:13.2]} 63. Rd2 {[%clk 0:00:19.6]} 63... Rxd2 {[%clk
0:00:09.3]} 64. Kxd2 {[%clk 0:00:19.8]} 64... Kd6 {[%clk 0:00:10.2]} 65. Kc2
{[%clk 0:00:10.8]} 65... Kc6 {[%clk 0:00:09.1]} 66. Kd2 {[%clk 0:00:10.7]} 66...
Kd6 {[%clk 0:00:09.4]} 67. Kc2 {[%clk 0:00:11.2]} 67... Kc6 {[%clk 0:00:07.4]}
68. Kd2 {[%clk 0:00:11.5]} 68... Kd6 {[%clk 0:00:08.1]} 1/2-1/2

[Event "Early-Titled-Tuesday-Blitz-January-16-2024"]
[Site "Chess.com"]
[Date "2024.01.16"]
[Round "2"]
[White "C_K_G"]
[Black "KNVB"]
[Result "0-1"]
[WhiteElo "2045"]
[BlackElo "2685"]
[TimeControl "180+1"]
[EndTime "8:19:31 PST"]
[Termination "KNVB won on time"]

1. e4 {[%clk 0:03:00.9]} 1... c5 {[%clk 0:02:58.3]} 2. Nf3 {[%clk 0:03:00.7]}
2... e6 {[%clk 0:02:58.3]} 3. d4 {[%clk 0:02:59.6]} 3... cxd4 {[%clk 0:02:59.2]}
4. Nxd4 {[%clk 0:02:59.1]} 4... Nc6 {[%clk 0:02:59.1]} 5. Be3 {[%clk 0:02:53.5]}
5... Qc7 {[%clk 0:02:54]} 6. c4 {[%clk 0:02:37.2]} 6... a6 {[%clk 0:02:51.9]} 7.
Nd2 {[%clk 0:02:32]} 7... Nf6 {[%clk 0:02:41.6]} 8. Be2 {[%clk 0:02:30.3]} 8...
Nxd4 {[%clk 0:02:00.7]} 9. Bxd4 {[%clk 0:02:29.5]} 9... e5 {[%clk 0:02:01.1]}
10. Bc3 {[%clk 0:02:24.8]} 10... d6 {[%clk 0:01:56.3]} 11. O-O {[%clk
0:02:22.9]} 11... Be7 {[%clk 0:01:56.9]} 12. b4 {[%clk 0:02:09.2]} 12... O-O
{[%clk 0:01:56.5]} 13. Qc2 {[%clk 0:02:05.6]} 13... Be6 {[%clk 0:01:53.6]} 14.
a4 {[%clk 0:01:59.4]} 14... Rac8 {[%clk 0:01:39]} 15. h3 {[%clk 0:01:53.6]}
15... b5 {[%clk 0:01:25.2]} 16. axb5 {[%clk 0:01:35.6]} 16... axb5 {[%clk
0:01:25.2]} 17. Rfb1 {[%clk 0:01:31.9]} 17... bxc4 {[%clk 0:01:14.7]} 18. b5
{[%clk 0:01:29.8]} 18... Qb7 {[%clk 0:00:42.1]} 19. b6 {[%clk 0:01:13.5]} 19...
Ra8 {[%clk 0:00:34]} 20. Rxa8 {[%clk 0:01:10.2]} 20... Rxa8 {[%clk 0:00:34.7]}
21. Bxc4 {[%clk 0:01:04.3]} 21... Bxc4 {[%clk 0:00:18.4]} 22. Nxc4 {[%clk
0:01:03.6]} 22... Qxe4 {[%clk 0:00:19.1]} 23. b7 {[%clk 0:00:49]} 23... Rb8
{[%clk 0:00:14.6]} 24. Qxe4 {[%clk 0:00:48.9]} 24... Nxe4 {[%clk 0:00:15.5]} 25.
Na5 {[%clk 0:00:48.6]} 25... Nxc3 {[%clk 0:00:14.4]} 26. Nc6 {[%clk 0:00:48.6]}
26... Rxb7 {[%clk 0:00:03.3]} 27. Rxb7 {[%clk 0:00:47.6]} 27... Bf8 {[%clk
0:00:03.9]} 28. Rb8 {[%clk 0:00:46.7]} 28... g6 {[%clk 0:00:02.2]} 29. Ne7+
{[%clk 0:00:36.9]} 29... Kg7 {[%clk 0:00:02.5]} 30. Rc8 {[%clk 0:00:34.8]} 30...
Bxe7 {[%clk 0:00:01.9]} 31. Rxc3 {[%clk 0:00:33.9]} 31... Kf6 {[%clk 0:00:02.6]}
32. Kf1 {[%clk 0:00:34]} 32... Ke6 {[%clk 0:00:03.3]} 33. Ke2 {[%clk 0:00:33.6]}
33... h5 {[%clk 0:00:03.4]} 34. f3 {[%clk 0:00:29.7]} 34... Bg5 {[%clk
0:00:02.8]} 35. Rc7 {[%clk 0:00:26.9]} 35... h4 {[%clk 0:00:02.4]} 36. Kd3
{[%clk 0:00:26.7]} 36... Bf4 {[%clk 0:00:02.4]} 37. Ra7 {[%clk 0:00:25.6]} 37...
f6 {[%clk 0:00:02.2]} 38. Ra6 {[%clk 0:00:24.7]} 38... Bg3 {[%clk 0:00:02]} 39.
Ke4 {[%clk 0:00:23.8]} 39... Bf2 {[%clk 0:00:01.5]} 40. Ra8 {[%clk 0:00:21]}
40... d5+ {[%clk 0:00:01.6]} 41. Kd3 {[%clk 0:00:21.2]} 41... Kf5 {[%clk
0:00:02.4]} 42. Rd8 {[%clk 0:00:18.5]} 42... d4 {[%clk 0:00:02.4]} 43. Rg8
{[%clk 0:00:18.1]} 43... g5 {[%clk 0:00:02.7]} 44. Re8 {[%clk 0:00:17.4]} 44...
Be3 {[%clk 0:00:02.5]} 45. Kc4 {[%clk 0:00:16.9]} 45... Kf4 {[%clk 0:00:02.8]}
46. Kd3 {[%clk 0:00:15.8]} 46... Kg3 {[%clk 0:00:03.4]} 47. Ke4 {[%clk
0:00:16.1]} 47... Kxg2 {[%clk 0:00:03.7]} 48. Rf8 {[%clk 0:00:16.4]} 48... Kxh3
{[%clk 0:00:03.9]} 49. Rxf6 {[%clk 0:00:16.6]} 49... Kg3 {[%clk 0:00:04.1]} 50.
Rh6 {[%clk 0:00:14.7]} 50... Bf4 {[%clk 0:00:04.2]} 51. Rh7 {[%clk 0:00:13.8]}
51... h3 {[%clk 0:00:04.7]} 52. Rh8 {[%clk 0:00:13.9]} 52... Kg2 {[%clk
0:00:05.2]} 53. Ra8 {[%clk 0:00:12.2]} 53... h2 {[%clk 0:00:05.3]} 54. Ra2+
{[%clk 0:00:12.5]} 54... Kh3 {[%clk 0:00:05.5]} 55. Ra1 {[%clk 0:00:11.9]} 55...
Be3 {[%clk 0:00:05.9]} 56. f4 {[%clk 0:00:04.9]} 56... Bg1 {[%clk 0:00:02.6]}
57. Ra3+ {[%clk 0:00:02.3]} 57... Kg4 {[%clk 0:00:02]} 0-1

[Event "Early-Titled-Tuesday-Blitz-January-16-2024"]
[Site "Chess.com"]
[Date "2024.01.16"]
[Round "2"]
[White "MusicCityMaster"]
[Black "DonJuanEGenaro"]
[Result "1/2-1/2"]
[WhiteElo "2424"]
[BlackElo "1869"]
[TimeControl "180+1"]
[EndTime "8:19:35 PST"]
[Termination "Game drawn - insufficient material"]

1. d4 {[%clk 0:02:31.9]} 1... Nf6 {[%clk 0:02:56.9]} 2. c4 {[%clk 0:02:31.7]}
2... c5 {[%clk 0:02:56.1]} 3. d5 {[%clk 0:02:31.5]} 3... e6 {[%clk 0:02:56.3]}
4. Nc3 {[%clk 0:02:31.3]} 4... exd5 {[%clk 0:02:56.4]} 5. cxd5 {[%clk
0:02:32.2]} 5... d6 {[%clk 0:02:55.5]} 6. Nf3 {[%clk 0:02:32.8]} 6... g6 {[%clk
0:02:54.8]} 7. Nd2 {[%clk 0:02:33.1]} 7... a6 {[%clk 0:02:52.8]} 8. a4 {[%clk
0:02:32.8]} 8... Bg7 {[%clk 0:02:42.8]} 9. Nc4 {[%clk 0:02:32.5]} 9... O-O
{[%clk 0:02:26.4]} 10. Bg5 {[%clk 0:02:31.8]} 10... h6 {[%clk 0:02:18.8]} 11.
Bf4 {[%clk 0:02:30.4]} 11... Ne8 {[%clk 0:02:16.6]} 12. e3 {[%clk 0:02:30.4]}
12... b6 {[%clk 0:01:49.2]} 13. Bd3 {[%clk 0:02:23]} 13... Ra7 {[%clk
0:01:46.6]} 14. h4 {[%clk 0:02:17.9]} 14... Rb7 {[%clk 0:01:42.4]} 15. h5 {[%clk
0:02:16.9]} 15... g5 {[%clk 0:01:40.8]} 16. Bg3 {[%clk 0:02:16.4]} 16... b5
{[%clk 0:01:39.3]} 17. axb5 {[%clk 0:02:16]} 17... axb5 {[%clk 0:01:38]} 18. Na5
{[%clk 0:02:15.9]} 18... Ra7 {[%clk 0:01:33.6]} 19. Nc6 {[%clk 0:02:09.5]} 19...
Nxc6 {[%clk 0:01:31.5]} 20. dxc6 {[%clk 0:02:08.9]} 20... Rxa1 {[%clk
0:01:29.2]} 21. Qxa1 {[%clk 0:02:09.8]} 21... Bxc3+ {[%clk 0:01:20.7]} 22. bxc3
{[%clk 0:02:09.1]} 22... Qb6 {[%clk 0:01:20.3]} 23. Qa8 {[%clk 0:01:40.5]} 23...
Nc7 {[%clk 0:01:11.2]} 24. Qa2 {[%clk 0:01:27]} 24... Qxc6 {[%clk 0:01:10.1]}
25. O-O {[%clk 0:01:26.8]} 25... c4 {[%clk 0:01:08.4]} 26. Bb1 {[%clk
0:01:25.6]} 26... Qd5 {[%clk 0:01:06.7]} 27. Qc2 {[%clk 0:01:21.8]} 27... f5
{[%clk 0:01:02.8]} 28. Rd1 {[%clk 0:01:21.9]} 28... Qf7 {[%clk 0:00:50.4]} 29.
Bxd6 {[%clk 0:01:04.8]} 29... Rd8 {[%clk 0:00:46.6]} 30. Be5 {[%clk 0:01:04.7]}
30... Rxd1+ {[%clk 0:00:45.4]} 31. Qxd1 {[%clk 0:01:05.6]} 31... Qd5 {[%clk
0:00:43]} 32. Qd4 {[%clk 0:00:55.8]} 32... Qxd4 {[%clk 0:00:41.1]} 33. exd4
{[%clk 0:00:55.1]} 33... Nd5 {[%clk 0:00:38.8]} 34. Bc2 {[%clk 0:00:49.8]} 34...
Nxc3 {[%clk 0:00:36.4]} 35. f3 {[%clk 0:00:49.6]} 35... b4 {[%clk 0:00:36.3]}
36. Bd6 {[%clk 0:00:48.2]} 36... b3 {[%clk 0:00:34.9]} 37. Bxb3 {[%clk
0:00:47.2]} 37... cxb3 {[%clk 0:00:34.3]} 38. Ba3 {[%clk 0:00:48.1]} 38... Be6
{[%clk 0:00:32.7]} 39. Kf2 {[%clk 0:00:47.3]} 39... Na4 {[%clk 0:00:31.5]} 40.
Ke3 {[%clk 0:00:44.1]} 40... b2 {[%clk 0:00:31.5]} 41. Bxb2 {[%clk 0:00:44.2]}
41... Nxb2 {[%clk 0:00:31.9]} 42. g3 {[%clk 0:00:40.1]} 42... Nc4+ {[%clk
0:00:31.5]} 43. Kd3 {[%clk 0:00:39.8]} 43... Bd5 {[%clk 0:00:31.2]} 44. f4
{[%clk 0:00:35.4]} 44... gxf4 {[%clk 0:00:30.7]} 45. gxf4 {[%clk 0:00:36.3]}
45... Kf7 {[%clk 0:00:29.2]} 46. Kc3 {[%clk 0:00:35.8]} 46... Nd6 {[%clk
0:00:27.5]} 47. Kb4 {[%clk 0:00:36]} 47... Bf3 {[%clk 0:00:27.5]} 48. Kc5 {[%clk
0:00:36.6]} 48... Ke7 {[%clk 0:00:27]} 49. d5 {[%clk 0:00:35.3]} 49... Bxh5
{[%clk 0:00:25.5]} 50. Kd4 {[%clk 0:00:35.9]} 50... Bf3 {[%clk 0:00:25]} 51. Ke5
{[%clk 0:00:35.7]} 51... Bxd5 {[%clk 0:00:24.6]} 52. Kxd5 {[%clk 0:00:35.8]}
52... Ne4 {[%clk 0:00:23.6]} 53. Ke5 {[%clk 0:00:34.9]} 53... Ng3 {[%clk
0:00:22.7]} 54. Kd5 {[%clk 0:00:34.7]} 54... Kf6 {[%clk 0:00:21.2]} 55. Kd4
{[%clk 0:00:35.1]} 55... h5 {[%clk 0:00:20.5]} 56. Ke3 {[%clk 0:00:35.7]} 56...
Ne4 {[%clk 0:00:19.5]} 57. Kf3 {[%clk 0:00:36.6]} 57... Ke6 {[%clk 0:00:19.6]}
58. Ke3 {[%clk 0:00:36.7]} 58... h4 {[%clk 0:00:18.6]} 59. Kf3 {[%clk
0:00:36.3]} 59... Kd5 {[%clk 0:00:17.7]} 60. Ke3 {[%clk 0:00:36.2]} 60... Nf6
{[%clk 0:00:16.7]} 61. Kf3 {[%clk 0:00:36.4]} 61... Kd4 {[%clk 0:00:16.2]} 62.
Kg2 {[%clk 0:00:36.2]} 62... Ke4 {[%clk 0:00:16.2]} 63. Kh3 {[%clk 0:00:36.8]}
63... Kxf4 {[%clk 0:00:15.4]} 64. Kxh4 {[%clk 0:00:37.7]} 64... Ng4 {[%clk
0:00:14.7]} 65. Kh3 {[%clk 0:00:37.8]} 65... Kf3 {[%clk 0:00:14.3]} 66. Kh4
{[%clk 0:00:38.2]} 66... f4 {[%clk 0:00:14.7]} 67. Kg5 {[%clk 0:00:38.6]} 67...
Ne3 {[%clk 0:00:14.2]} 68. Kf6 {[%clk 0:00:37.5]} 68... Kg3 {[%clk 0:00:13.9]}
69. Ke5 {[%clk 0:00:38.4]} 69... f3 {[%clk 0:00:13.9]} 70. Ke4 {[%clk
0:00:39.3]} 70... f2 {[%clk 0:00:12.5]} 71. Kxe3 {[%clk 0:00:40.2]} 71... f1=Q
{[%clk 0:00:13]} 72. Ke4 {[%clk 0:00:41.1]} 72... Qc4+ {[%clk 0:00:11.7]} 73.
Ke5 {[%clk 0:00:40.6]} 73... Qd4+ {[%clk 0:00:11.5]} 74. Kxd4 {[%clk 0:00:40.7]}
1/2-1/2

[Event "Early-Titled-Tuesday-Blitz-January-16-2024"]
[Site "Chess.com"]
[Date "2024.01.16"]
[Round "2"]
[White "YurasovMat-2012"]
[Black "maciek_92"]
[Result "1-0"]
[WhiteElo "2594"]
[BlackElo "2851"]
[TimeControl "180+1"]
[EndTime "8:19:37 PST"]
[Termination "YurasovMat-2012 won by checkmate"]

1. e4 {[%clk 0:03:00.9]} 1... c5 {[%clk 0:03:00.1]} 2. Nf3 {[%clk 0:02:59.8]}
2... e6 {[%clk 0:03:00.2]} 3. g3 {[%clk 0:02:59.3]} 3... Nc6 {[%clk 0:03:00.3]}
4. Bg2 {[%clk 0:02:58.4]} 4... Nf6 {[%clk 0:03:00.3]} 5. d3 {[%clk 0:02:58]}
5... e5 {[%clk 0:03:00.7]} 6. O-O {[%clk 0:02:57.7]} 6... Be7 {[%clk 0:03:00.9]}
7. h3 {[%clk 0:02:56.4]} 7... O-O {[%clk 0:03:00.3]} 8. Re1 {[%clk 0:02:56.4]}
8... Re8 {[%clk 0:03:00.5]} 9. c3 {[%clk 0:02:55.5]} 9... h6 {[%clk 0:03:00.7]}
10. d4 {[%clk 0:02:54.5]} 10... d6 {[%clk 0:02:53.9]} 11. Na3 {[%clk 0:02:52.5]}
11... Bf8 {[%clk 0:02:44.4]} 12. dxc5 {[%clk 0:02:46.6]} 12... dxc5 {[%clk
0:02:44.1]} 13. Qe2 {[%clk 0:02:45.6]} 13... Be6 {[%clk 0:02:39.2]} 14. Nd2
{[%clk 0:02:30.1]} 14... a6 {[%clk 0:02:37.1]} 15. Rd1 {[%clk 0:02:25.6]} 15...
Qc7 {[%clk 0:02:35.8]} 16. Ndc4 {[%clk 0:02:25.1]} 16... Rad8 {[%clk 0:02:25.8]}
17. Ne3 {[%clk 0:02:25.4]} 17... Rxd1+ {[%clk 0:02:25.3]} 18. Qxd1 {[%clk
0:02:26.3]} 18... Rd8 {[%clk 0:02:25.2]} 19. Nd5 {[%clk 0:02:26]} 19... Bxd5
{[%clk 0:02:08.3]} 20. exd5 {[%clk 0:02:25.9]} 20... Ne7 {[%clk 0:02:09]} 21. c4
{[%clk 0:02:25.9]} 21... Nf5 {[%clk 0:02:06.9]} 22. Nc2 {[%clk 0:02:24.5]} 22...
b5 {[%clk 0:02:06]} 23. b3 {[%clk 0:02:24.1]} 23... Nd4 {[%clk 0:01:53.8]} 24.
Bb2 {[%clk 0:02:14.5]} 24... Ne8 {[%clk 0:01:41.7]} 25. Rc1 {[%clk 0:02:05]}
25... bxc4 {[%clk 0:01:39.2]} 26. bxc4 {[%clk 0:02:04.5]} 26... Nd6 {[%clk
0:01:39]} 27. Qd3 {[%clk 0:01:55.6]} 27... g6 {[%clk 0:01:34]} 28. Nxd4 {[%clk
0:01:53.7]} 28... exd4 {[%clk 0:01:33.4]} 29. Re1 {[%clk 0:01:52.8]} 29... Qa5
{[%clk 0:01:26]} 30. Re2 {[%clk 0:01:32]} 30... Qa4 {[%clk 0:00:51.6]} 31. Rc2
{[%clk 0:01:28.1]} 31... Re8 {[%clk 0:00:49.6]} 32. Bc1 {[%clk 0:01:20]} 32...
Nf5 {[%clk 0:00:44.9]} 33. Be4 {[%clk 0:01:10.3]} 33... Nd6 {[%clk 0:00:35.6]}
34. Bf3 {[%clk 0:01:05.6]} 34... Re1+ {[%clk 0:00:31.1]} 35. Kg2 {[%clk
0:01:05.4]} 35... Nf5 {[%clk 0:00:23.6]} 36. Be4 {[%clk 0:00:54.7]} 36... Nd6
{[%clk 0:00:23.3]} 37. Bf3 {[%clk 0:00:54.4]} 37... h5 {[%clk 0:00:23.7]} 38.
Bf4 {[%clk 0:00:51.1]} 38... Qb4 {[%clk 0:00:15.9]} 39. Bd2 {[%clk 0:00:48.2]}
39... Qb1 {[%clk 0:00:10.1]} 40. Bxe1 {[%clk 0:00:47.3]} 40... Qxe1 {[%clk
0:00:11]} 41. Rb2 {[%clk 0:00:41]} 41... Bg7 {[%clk 0:00:09.4]} 42. Rb6 {[%clk
0:00:34]} 42... Qc3 {[%clk 0:00:09.1]} 43. Qe2 {[%clk 0:00:26.3]} 43... d3
{[%clk 0:00:06.2]} 44. Qd1 {[%clk 0:00:20.2]} 44... Nxc4 {[%clk 0:00:05.7]} 45.
Rb3 {[%clk 0:00:19.8]} 45... Qc2 {[%clk 0:00:04]} 46. Rxd3 {[%clk 0:00:19.2]}
46... Qxa2 {[%clk 0:00:04.6]} 47. d6 {[%clk 0:00:17.5]} 47... Bd4 {[%clk
0:00:03.1]} 48. Rxd4 {[%clk 0:00:14.7]} 48... Ne3+ {[%clk 0:00:02.9]} 49. Kg1
{[%clk 0:00:12.4]} 49... Nxd1 {[%clk 0:00:03.5]} 50. Rxd1 {[%clk 0:00:11.4]}
50... Qa5 {[%clk 0:00:03.6]} 51. d7 {[%clk 0:00:11.4]} 51... Qd8 {[%clk
0:00:04.5]} 52. Bc6 {[%clk 0:00:11.2]} 52... Kg7 {[%clk 0:00:03.9]} 53. Re1
{[%clk 0:00:11.3]} 53... Qb6 {[%clk 0:00:02.5]} 54. Re8 {[%clk 0:00:09.1]} 54...
Qxc6 {[%clk 0:00:02.9]} 55. d8=Q {[%clk 0:00:09.4]} 55... Qb5 {[%clk 0:00:03]}
56. Re1 {[%clk 0:00:06.8]} 56... c4 {[%clk 0:00:03]} 57. Qd4+ {[%clk 0:00:06.7]}
57... Kg8 {[%clk 0:00:03.4]} 58. Rc1 {[%clk 0:00:06.6]} 58... Qb3 {[%clk
0:00:02.5]} 59. Qxc4 {[%clk 0:00:06.3]} 59... Qb2 {[%clk 0:00:03.1]} 60. Qc3
{[%clk 0:00:05.8]} 60... Qb5 {[%clk 0:00:02]} 61. Rd1 {[%clk 0:00:06]} 61... a5
{[%clk 0:00:02.2]} 62. Rd8+ {[%clk 0:00:06.1]} 62... Kh7 {[%clk 0:00:01.5]} 63.
Rh8# {[%clk 0:00:06.7]} 1-0